Cogmind - Beta 12 @@@ ROGUE MODE // 2023.06.08 @ 09:24:41 Player: Mr Goldstein Result: Self-destructed Performance ------------- Evolutions (1) 500 Regions Visited (2) 400 Robots Destroyed (2) 10 Value Destroyed (20) 20 Prototype IDs (0) 0 Alien Tech Used (0) 0 Bonus (200) 200 TOTAL SCORE: 1130 Bonus ------- Pacifist 200 Cogmind --------- Core Integrity 110/400 Matter 245/300 Energy 99/100 System Corruption 0% Temperature Cool (0) Movement Core (50) Location -9/Materials Parts ------- > --- POWER (1) -------- (None) > --- PROPULSION (3) --- (None) > --- UTILITY (3) ------ (None) > --- WEAPON (2) ------- (None) > --- INVENTORY (5) ---- Small Storage Unit Hardened Light Armor Plating Grenade Launcher Peak State ------------ > --- POWER ------------ (None) > --- PROPULSION ------- Flight Unit > --- UTILITY ---------- Hardened Light Armor Plating > --- WEAPON ----------- (None) > --- INVENTORY -------- Small Storage Unit Grenade Launcher [Rating: 3] Favorites ----------- Power None Propulsion Flight Unit Flight Unit Flight Unit Utility Hardened Light Armor Plating Protection Hardened Light Armor Plating Weapon Grenade Launcher Launcher Grenade Launcher Build | -11 -10 -9 ------- Run | Jun Mat Mat Slots Evolved 2 | . . 2 Power . | . . . Propulsion 1 | . . 1 Utility 1 | . . 1 Weapon . | . . . Parts Attached 3 | . 1 2 Power . | . . . Engine . | . . . Core . | . . . Reactor . | . . . Propulsion 1 | . 1 . Treads . | . . . Leg . | . . . Wheel . | . . . Hover . | . . . Flight 1 | . 1 . Utility 1 | . . 1 Device . | . . . Storage . | . . . Processor . | . . . Hackware . | . . . Protection 1 | . . 1 Artifact . | . . . Weapon 1 | . . 1 Energy Gun . | . . . Energy Cannon . | . . . Ballistic Gun . | . . . Ballistic Cannon . | . . . Launcher 1 | . . 1 Special Weapon . | . . . Impact Weapon . | . . . Slashing Weapon . | . . . Piercing Weapon . | . . . Special Melee Weapon . | . . . Unidentified Prototypes . | . . . Parts Lost 1 | . . 1 Power . | . . . Propulsion 1 | . . 1 Utility . | . . . Weapon . | . . . Highest Loss Streak 1 | . . 1 To Critical Strikes . | . . . Average Slot Usage (%) 6 | . 6 6 Flight 6 | . 6 6 Naked Turns 82 | . 44 38 Heaviest Build . | . . . Greatest Support 4 | 3 4 4 Greatest Overweight (x) . | . . . Average Overweight (x) . | . . . Largest Inventory Capacity 5 | 5 5 5 Average Capacity 5 | 5 5 5 Most Carried 3 | . 2 3 Average Carried 1 | . . 2 Final Capacity 5 | 5 5 5 Final Carried 3 | . 2 3 Class Distribution -------------------- 100% | Mutant Dominant Class ---------------- Mutant | -10/Materials Mutant | -9/Materials Resources | -11 -10 -9 ----------- Run | Jun Mat Mat Matter Collected 185 | 185 . . Remotely . | . . . Salvage Created 4 | . . 4 Parts 3 | . . 3 Haulers Intercepted . | . . . Recyclers Shooed . | . . . Parts Field Recycled . | . . . Retrieved Matter . | . . . Parts Self-Destructed . | . . . Prevented . | . . . Kills | -11 -10 -9 ------- Run | Jun Mat Mat Combat Hostiles Destroyed 2 | . . 2 AOE 2 | . . 2 Classes Destroyed 1 | . . 1 Swarmer 2 | . . 2 Best Kill Streak 2 | . . 2 Combat Bots Only 2 | . . 2 Max Kills in Single Turn 1 | . . 1 Gunslinging . | . . . Exploded 1 | . . 1 Melee . | . . . Uniques/NPCs Destroyed . | . . . Combat | -11 -10 -9 -------- Run | Jun Mat Mat Damage Taken 462 | . 111 351 Core 401 | . 111 290 Absorbed by Shields . | . . . Core Remaining (%) 77 | 100 55 . Volleys Fired 2 | . . 2 Largest 1 | . . 1 Hottest 30 | . . 30 Shots Fired 2 | . . 2 Gun . | . . . Cannon . | . . . Launcher 2 | . . 2 Special . | . . . Kinetic . | . . . Thermal . | . . . Explosive 2 | . . 2 Electromagnetic . | . . . Robot Hit Streak . | . . . Robot Miss Streak . | . . . Penetration Max . | . . . Secondary Targets . | . . . Shots Hit Robots . | . . . Core Hits 3 | . . 3 Critical Kills . | . . . Critical Parts Destroyed . | . . . Critical Strikes . | . . . Melee Attacks . | . . . Impact . | . . . Slashing . | . . . Piercing . | . . . Sneak Attacks . | . . . Combat Hostiles . | . . . Follow-up Attacks . | . . . Damage Inflicted 101 | . . 101 Guns . | . . . Cannons . | . . . Explosions 101 | . . 101 Melee . | . . . Ramming . | . . . Kinetic . | . . . Thermal . | . . . Explosive 101 | . . 101 Electromagnetic . | . . . Impact . | . . . Slashing . | . . . Piercing . | . . . Highest Corruption . | . . . Average Corruption . | . . . Corruption Purged . | . . . Corruption Blocked . | . . . Overload Shots . | . . . Overflow Damage . | . . . Projectiles . | . . . Explosions . | . . . Melee . | . . . Knockbacks . | . . . Impact . | . . . Kinetic . | . . . Secondary . | . . . Self-Inflicted Damage 23 | . . 23 Shots 1 | . . 1 Rammed 1 | . . 1 Targets Rammed 1 | . . 1 Kicked . | . . . Crushed . | . . . Highest Temperature . | . . . Average Temperature . | . . . Received Heat Transfer 135 | . 45 90 Siege Activations . | . . . Robots Corrupted . | . . . Combat Hostiles . | . . . Parts Fried . | . . . Impact Corruptions . | . . . Robots Melted . | . . . Combat Hostiles . | . . . Parts Melted . | . . . Heat Transferred . | . . . Parts Sabotaged . | . . . Parts Stolen . | . . . Parts Stripped . | . . . Power Chain Reactions . | . . . Missiles Intercepted . | . . . Alert | -11 -10 -9 ------- Run | Jun Mat Mat Peak Influence 237 | . 82 237 Initial 34 | . . 34 Average 67 | . 30 98 Maximum Alert Level 1 | . . 1 Low Security (%) 88 | 100 100 79 Level 1 11 | . . 20 Level 2 . | . . . Level 3 . | . . . Level 4 . | . . . Level 5 . | . . . High Security . | . . . Max Security . | . . . Squads Dispatched 3 | . 2 1 Investigation 2 | . 1 1 Extermination . | . . . Reinforcement 1 | . 1 . Assault . | . . . Garrison . | . . . Intercept . | . . . Searches Triggered . | . . . Construction Impeded . | . . . Haulers Reinforced . | . . . Active Scanning Responses . | . . . Cargo Convoy Interrupts . | . . . Stealth | -11 -10 -9 --------- Run | Jun Mat Mat Distress Signals 1 | . . 1 Communications Jammed . | . . . Distress Signals . | . . . Times Spotted 30 | . 11 19 Peak Tracking Total 17 | . 10 17 Tactical Retreats 3 | . 1 2 Traps | -11 -10 -9 ------- Run | Jun Mat Mat Traps Triggered 1 | . . 1 Indirectly . | . . . Trap Hack Attempts . | . . . Triggered . | . . . Disarmed . | . . . Reprogrammed . | . . . Reused . | . . . Traps Extracted . | . . . Installed . | . . . Triggered . | . . . Machines | -11 -10 -9 ---------- Run | Jun Mat Mat Machines Disabled . | . . . Max in Single Turn . | . . . Machines Repaired . | . . . Machines Sabotaged . | . . . Overloaded Fab Kills . | . . . Hacking | -11 -10 -9 --------- Run | Jun Mat Mat Machines Accessed 4 | . 2 2 Terminals 2 | . 1 1 Fabricators . | . . . Repair Stations . | . . . Recycling Units 2 | . 1 1 Scanalyzers . | . . . Garrison Access . | . . . Total Hacks 7 | . 4 3 Successful 4 | . 2 2 Failed 3 | . 2 1 Catastrophic 1 | . . 1 Database Lockouts . | . . . Manual 8 | . 4 4 Terminals 5 | . 3 2 Fabricators . | . . . Repair Stations . | . . . Recycling Units 2 | . 1 1 Scanalyzers . | . . . Garrison Access . | . . . Terminal Hacks 2 | . 1 1 Recycling Unit Index 2 | . 1 1 Fabricator Hacks . | . . . Repair Station Hacks . | . . . Recycling Unit Hacks . | . . . Scanalyzer . | . . . Garrison Access Hacks . | . . . Unauthorized Hacks 2 | . 1 1 Terminals . | . . . Fabricators . | . . . Repair Stations . | . . . Recycling Units 2 | . 1 1 Tunnel 2 | . 1 1 Scanalyzers . | . . . Garrison Access . | . . . Data Cores Recovered . | . . . Used . | . . . Hacking Detections 2 | . 1 1 Full Trace Events 1 | . . 1 Feedback Events . | . . . Feedback Blocked . | . . . Robot Schematics Acquired . | . . . Robots Built . | . . . Authchips . | . . . Time . | . . . Total Robot Build Rating . | . . . Part Schematics Acquired . | . . . Parts Built . | . . . Authchips . | . . . Time . | . . . Total Part Build Rating . | . . . Parts Repaired . | . . . Time . | . . . Parts Recycled . | . . . Recycled Matter . | . . . Retrieved Matter . | . . . Retrieved Components . | . . . Parts Scanalyzed . | . . . Part Schematics Acquired . | . . . Parts Damaged . | . . . Bothacking | -11 -10 -9 ------------ Run | Jun Mat Mat Used RIF Installer . | . . . Robots Hacked . | . . . Non-combat . | . . . Combat . | . . . Robot Hacks Applied . | . . . Relay Couplers Released . | . . . Fabnet Peak Effective % . | . . . Robots Rewired . | . . . Allies Hacked . | . . . Hacks Repelled . | . . . Allies | -11 -10 -9 -------- Run | Jun Mat Mat Total Allies . | . . . Largest Group . | . . . Highest-Rated Group . | . . . Highest-Rated Ally . | . . . Total Orders . | . . . Ally Attacks . | . . . Total Damage . | . . . Kills . | . . . Allies Corrupted . | . . . Allies Melted . | . . . Intel | -11 -10 -9 ------- Run | Jun Mat Mat Robot Analysis Total . | . . . Derelict Logs Recovered . | . . . Drone Launches . | . . . Drone Recoveries . | . . . Exploration | -11 -10 -9 ------------- Run | Jun Mat Mat Turns Passed 188 | 10 72 106 Spaces Moved 393 | 20 148 225 Core 180 | 20 87 73 Treads . | . . . Legs . | . . . Wheels . | . . . Hover . | . . . Flight 213 | . 61 152 Fastest Speed 40 | 50 40 40 Average Speed 44 | 50 45 43 Slowest Speed 50 | 50 50 50 Overloaded Moves . | . . . Propulsion Burnouts . | . . . Robots Hopped 6 | . . 6 Cave-ins Triggered . | . . . Exploration Rate (%) 26 | 3 46 31 Regions Visited 2 Branch Regions . Pre-discovered Areas 2 | . 1 1 Known Exits Taken . | . . . Unknown Exits Taken 2 | 1 1 . Scrap Searched . | . . . Spaces Dug 20 | . . 20 Terrain Destroyed 20 | . . 20 Melee . | . . . Projectile . | . . . AOE 20 | . . 20 Terrain Rammed . | . . . Walls Destroyed . | . . . Machines Disabled . | . . . Actions | -11 -10 -9 --------- Run | Jun Mat Mat Total 395 | 19 150 226 Wait . | . . . Move 382 | 19 147 216 Hop 3 | . . 3 Pick Up 2 | . 2 . Fast Attach 2 | . 1 1 Attach 1 | . . 1 Detach 2 | . . 2 Swap . | . . . Drop . | . . . Fire 2 | . . 2 Melee . | . . . Ram 1 | . . 1 Kick . | . . . Crush . | . . . Escape Stasis . | . . . Rewire . | . . . Trap . | . . . Miscellaneous . | . . . Route ------- -11/Junkyard -10/Materials (discovered 2 exits: *Mat x2) -9/Materials (discovered 2 exits: [*Mat] / [*Sto]) History --------- Turn | Location | Event 4 | -11/Junkyard | Discovered new exit (range 15) 11 | -11/Junkyard | Entered Materials 32 | -10/Materials | Discovered new exit (range 15) 80 | -10/Materials | Discovered new exit (range 7) 83 | -10/Materials | Entered another Materials area 83 | -9/Materials | Evolved 2 slots: Propulsion x1, Utility x1 120 | -9/Materials | Discovered new exit (range 7) 174 | -9/Materials | Core integrity fell below 50% 181 | -9/Materials | Discovered new exit (range 8) 189 | -9/Materials | Self-destructed Last Messages --------------- Found 2 recycling units. Downloaded coordinate data. 00104_ Acquired Hrd. Light Armor Plating. 00114_ T-07 Excavator is excavating. 00120_ EXIT=FOUND 00132_ K-01 Serf collects debris. 00146_ Flight Unit destroyed. 00150_ W-16 Scout sends out distress signal. 00154_ S-10 Pest destroyed. 00159_ K-01 Serf collects debris. 00161_ Connecting with Recycling Unit... >>Force(Tunnel) DISCOVERED[-8/Mines] 00161_ ALERT: Suspicious activity at Recycling Unit M002. Dispatching Investigation squad. 00167_ Critical hit (Burn: +37). 00173_ Triggered Blade Trap. 00173_ Massive razor-sharp blades shoot up from within the floor. 00174_ Slammed into S-10 Pest. 00181_ EXIT=FOUND Map ----- +----------------------------------------------------+ | ????# """ #??????????????# """ #?????# #?????? | | +####### """ #??????????????# """ #?????# #?????? | | # #??????????????# """ #?????# #?????? | | + """ #??????????????+ ####### #?????? | | # """ #??????????????# """ + #?????? | | ## ### """ #??????????????# """ # ##### #?????? | | # #?# #??????????????# """ # #####/####??? | | ####?# #??????????????# # # #??? | | #????# #???????? ######+### # [ #??? | | #????##+####??????? # "T" #??? | | #?????????????????? / """ #??? | | #?????????????????? ##/##########??? | | #??????????????????? ##### ## #???? | | #??????????????????????????## ## """"""" #???? | | #??????????????????????????# # """"""" #???? | | ##??????????????????????????# # """"""" #???? | | #???????????????????????????# + """"""" #???? | | #???????????????????????????# # """"""" #???? | | ######## #??????????????????# # #???? | | #??????????????????## ## =#???? | | #???????????????????# ####/########??? | | #???????????????????# #??# #? #??? | | #???????????????????# #??# #? #??? | | ##########?????????###+####### #### # #??? | | ##??????????????????# sg # #??? | | #???????????????????+ @ s + #??? | | #???????????????????# # #??? | | #???????????????????# ###### < ###### #??? | | #???????????????????# ?????# #?????? #??? | | #???????????????????# ?????#####?????? #??? | | #######?????????????#+###????????????????? #??? | | #??????????????????????????????????? #??? | | #???????????????????????????????????? #??? | | #???????????????????????????????????? #??? | | #?????????????????????????????????????###??? | | #######??????????????????????????????????????????? | | | | | | | | | | | | | | | | | | | | | | | | | | | | | +----------------------------------------------------+ Best States ------------- Heat Dissipation 28 Energy Generation 5 Energy Capacity 100 Matter Stores 285 Matter Capacity 300 Sight Range 16 Terrain Scan Density 10 Evasion (%) 62 Item Schematics ----------------- None Robot Schematics ------------------ None Fabricated ------------ Nothing Alien Tech Used ----------------- None Achievements -------------- None Challenges ------------ None Game ------ Seed DecoyCoilLoader Manual? 0 Play Time 00:04:05 Cumulative 280.7 hours Start 2023.06.08 @ 09:19:52 End 2023.06.08 @ 09:24:41 Sessions 1 Manual Loads 0 Difficulty Rogue Special Mode None Game No. 828 Rogue 828 Adventurer 0 Explorer 0 Win Type - Total 17 Types 8/0/7/2/0/0/0/0/0 Lore% 90 Gallery% 87 Achievement% 79 Wizard Run 0 Options --------- ASCII 0 Keyboard 0 Movement Numpad Keybinds 0 Fullscreen 1 Font 16/SmallcapsGlow Map View 75x55 Tactical HUD 1 Map Filters NONE Filters NONE Steam 1 RUN: dd062e26-3157-4483-a602-6cb8a2f9ffeb